Workbook

Sheet Instruction
B2: KENTUCKY CCBHC COMMUNITY NEEDS ASSESSMENT TEMPLATE
B3: Clinic Name | F3: Start Date of Needs Assessment
B4: Primary Contact Name | F4: Email
B5: Agency Community Needs Assessment Guiding Team Members
B6: Name | F6: Agency Title
B12: Completion of the Certified Community Behavioral Health Clinic (CCBHC) Community Needs Assessment (CNA) process is in alignment with CCBHC Criteria Program Requirement 1.a.1 as included in SAMHSA CCBHC Certification Criteria updated March 2023. Additional data points are added at the discretion of the state. Additional local or state data sources may be used in completing your CNA. The CNA process should be thoughtful, well informed and will likely take a period of three (3) to five (5) months to complete. Response to all questions included in the Free Response Tab are required. The Completion of this Community Needs Assessment is required of all CCBHCs participating in the Kentucky CCBHC Demonstration and supports your agency’s state certification.
B13: The purpose of this document is to: • Inform the Staffing Plan to ensure the CCBHC maintains a core workforce comprised of employed and contracted staff for both clinical and non-clinical services provided by your agency; • Ensure access and availability of services to meet the needs of the populations served; • Identify outreach, engagement, and retention activities to support inclusion and access for underserved individuals and populations; • Inform cultural, linguistic, physical health, and behavioral health treatment needs; • Inform evidence-based practices and behavioral health crisis services; • Identify potential barriers to care such as geographic barriers, transportation challenges, economic hardship, lack of culturally responsive services and workforce shortages; and • Inform the agency Continuous Quality Improvement (CQI) plan and processes.
B14: This template provides the data points to support the completion of your comprehensive CNA and serves to record your CNA findings. The Data Source tab provides links to resources for use in completing your CNA. These links offer pertinent quantitative data essential for populating the designated tables and addressing the free response questions.
B15: The CNA Stakeholder Engagement document is a companion document to this template and is a resource to assist with completing your CNA.
B16: Disclaimer: Please note that it might be necessary to explore supplementary resources beyond the provided links to acquire qualitative and/or quantitative data requisite for completing your CNA.

Sheet Terms & Definitions
B2: Definitions and Terms
B3: Access to Healthcare: the lack of ability to obtain healthcare services for prevention, diagnosis, treatment, and the management of diseases, illnesses, disorders, and other health-impacting conditions.
B4: Agency Action Plan: Agency plan to address or remediate identified needs and barriers.
B5: Agency Forms: agency forms translated to accommodate specific languages
B6: AMI (Any Mental Illness): Any individual having any mental, behavior, or emotional disorder in the past year that met DSM-IV criteria (excluding developmental and substance use disorders).
B7: Assistive Technology: equipment, software program, or product used to improve patient communication.
B8: Behavioral Health: encompasses the promotion of emotional health; the prevention of mental illnesses and substance use disorders; and treatments and services for mental and/or substance use disorders.
B9: Bilingual Therapist: professional accommodation for linguistic characteristics including bilingual or multilingual factors for patients.
B10: Braille Materials: documents available by people who are visually impaired.
B11: Care Coordination: an activity instead of a service. Intentionally coordinating a person’s care by helping them gain access to needed supports and services.
B12: Comorbidities: two disorders/Illnesses present in a person with a Serious Mental Illness (SMI) or SUD
B13: Culture: a group or community, which shares common experiences that shape the way its members understand the world.
B14: Economic Instability: a person or family lacks the resources to provide life necessities (e.g., affordable housing, employment that provides a living wage, childcare, and access to reliable transportation).
B15: Evidence-Based Practice: Treatments that are supported by clinical research.
B16: Food Insecurity: not having access to sufficient food or quality/notorious food to meet one’s basic needs.
B17: Gender-Concordant Care: the provider of care and the patient are the same sex
B18: Health Behaviors: actions taken by individuals that affect their health or mortality
B19: Health Equity: the state in which everyone has a fair and just opportunity to attain their highest level of health.
B20: Identified Barriers: Any barriers identified as a result of stakeholder engagement activities and data analysis.
B21: Identified Needs: Any needs identified as a result of stakeholder engagement activities and data analysis.
B22: Large Print Materials: printed materials in large print so a person with limited vision can read the document.
B23: Limited Support System: having limited or no network of family/friends or resources
B24: Promote Cultural Awareness: agency ensures staff and providers can appropriately acknowledge and respond to cultural difference and needs
B25: Racial/Cultural Disparity: Imbalances and/or incongruities between the treatment of racial and cultural groups
B26: Religious Accommodations: agency identifies and appropriately accommodates a person’s religious beliefs.
B27: Serious Emotional Disturbance (SED): An individual with a designated mental illness diagnosis.
B28: Serious Mental illness (SMI): A mental, behavioral, or emotional disorder resulting in serious functional impairment, which substantially interferes with or limits one or more major life activities. The burden of mental illnesses is particularly concentrated among those who experience disability due to SMI.
B29: Social Drivers of Health (SDOH): are the nonmedical (non-clinical) factors or conditions that influence health outcomes.
B30: Specific, Measurable, Achievable, Relevant, and Time-Bound (SMART Goal): list agency measurable goals for advancement in related areas.
B31: Staff Support: agency staff is available to assist patients with their care.
B32: Staff Training: staff receive training specific to identified cultures (to include appropriate staff behaviors and skills) to deliver high-quality culturally appropriate care
B33: SUD (Substance use Disorder): An Individual with alcohol or illicit drug dependence or abuse.
B34: Telehealth/telemedicine: Includes video conferencing, digital therapeutics, remote patient monitoring, asynchronous interventions, and other technologies to the extent possible in alignment with the preferences of the person receiving services.

Sheet Data Source
B3: DATA RESOURCES
B4: Website | C4: Link | D4: Data Source | E4: Data Content | F4: Data Type
B5: 2022-2023 National Survey on Drug Use and Health | C5: https://www.samhsa.gov/data/report/2022-2023-nsduh-estimated-totals-state | D5: SAMHSA | E5: 2022-2023 National Surveys on Drug Use and Health (NSDUH) state-level estimates for measures of both substance use and mental health, by age group. | F5: National, State
B6: 2022-2023 NSDUH: Model-Based Estimated Prevalence For States | C6: https://www.samhsa.gov/data/report/2022-2023-nsduh-state-prevalence-estimates | D6: SAMHSA | E6: 2022-2023 National Surveys on Drug Use and Health (NSDUH) state-level prevalence estimates for measures of both substance use and mental health, by age group. | F6: National, State
B7: America's Health Rankings | C7: https://www.americashealthrankings.org/ | D7: United Health Foundation | E7: Analyzes more than 340 measures of behaviors, social and economic factors, and physical environment and clinical care data, based on public-use data sets. Reports are released on key national areas of health. | F7: National, State
B8: Appalachian Regional Commission (ARC) | C8: https://www.arc.gov/about-the-appalachian-region/ | D8: Various government sites | E8: Economic development partnership entity of 13 state governments focusing on 423 counties. | F8: County
B9: Behavioral Risk Factor Surveillance System (BRFSS) | C9: https://www.cdc.gov/brfss/brfssprevalence/index.html | D9: BRFSS Prevalence & Trends Data | E9: Prevalence estimates and trends of health-related risk behaviors, chronic health conditions, and use of preventive services. | F9: National, State
B10: BRFSS Selected Metropolitan/Micropolitan Area Risk Trends (SMART): City and County Data | C10: https://data.cdc.gov/browse?category=Behavioral+Risk+Factors&sortBy=relevance&page=1&pageSize=20 | D10: CDC | E10: Combined landline and cellphone survey data on modifiable risk factors for chronic disease and other leading causes of death in select areas. | F10: Selected Metropolitan Statistical Areas (MMSAs)
B11: BRFSS Web Enabled Analysis Tool (WEAT) | C11: https://nccd.cdc.gov/weat/#/ | D11: CDC | E11: Users create custom cross-tabulation tables for health indicators. | F11: State
B12: Buprenorphine Practitioner Locator | C12: https://www.samhsa.gov/medication-assisted-treatment/find-treatment/treatment-practitioner-locator | D12: U.S. Substance Abuse and Mental Health Services Administration | E12: Location and information for practitioners by city, state, or zip code who previously held a DATA-2000 waiver to prescribe Buprenorphine for the treatment of opioid use disorder. | F12: State, Local
B13: Bureau of Justice Statistics | C13: https://bjs.ojp.gov/data/data-analysis-tools | D13: Bureau of Justice Statistics | E13: Range of tools providing data on people in prison, parolees and juvenile justice. | F13: National, State, County
B14: Calculator | C14: https://www.calculator.net/average-calculator.html | D14: Calculator | E14: Calculator to get the average of a group of numbers.
B15: CARES Map | C15: https://careshq.org/map-room/?bboxGeo=-83.51172899999995,36.66479300000003,-82.85573499999998,37.02121100000005&def={%22t11%22:%22FIPS=%2721095%27%22}&ids=39711,t11 | D15: University of Missouri Extension map | E15: Custom assessments from civic, health, and economic indicators e.g., agricultural, environmental, opioids, food security, housing. | F15: National, State, County
B16: CDC Data, Trends, and Maps | C16: https://dnpao-dtm.cdc.gov/ | D16: CDC | E16: Interactive database on national, state, and county-level data about the health status and behaviors of Americans as well as environmental or policy supports. | F16: National, State, County
B17: CDC WONDER | C17: https://wonder.cdc.gov/ | D17: CDC | E17: Wide array of public health data | F17: National, State, County
B18: Child Trends | C18: https://www.childtrends.org/ | D18: Child Trends | E18: Research and data on children, youth, and special populations. | F18: National, State, County
B19: Chronic Disease Indicators | C19: https://www.cdc.gov/cdi/ | D19: CDC | E19: Chronic Diseases and Risk Factor Indicators | F19: National, State and Territory
B20: County Health Rankings | C20: https://www.countyhealthrankings.org/explore-health-rankings | D20: University of Wisconsin Population Health Institute | E20: Health Data, evidence, guidance and examples of multiple factors influencing health. | F20: State, County, Zip Code
B21: County Health Rankings | C21: https://www.countyhealthrankings.org/health-data/kentucky?year=2025 | D21: University of Wisconsin Population Health Institute | E21: Population Health and Well-being Data | F21: National, State, County
B22: County Health Rankings | C22: https://www.countyhealthrankings.org/health-data/kentucky?measure=Population+Health+and+Well-being&year=2024 | D22: University of Wisconsin Population Health Institute | E22: Health Outcomes Data | F22: National, State, County
B23: Data USA | C23: https://datausa.io/profile/geo/kentucky | D23: Data USA | E23: Data-search and -visualization website on demographic, population, diversity, etc. | F23: State, County
B24: Data.HRSA.Gov | C24: https://data.hrsa.gov/maps/map-tool/ | D24: Build your own map. | E24: Select and plot facilities, providers, site/area's, and population and public health data. | F24: National
B25: Data.HRSA.Gov | C25: https://data.hrsa.gov/tools/data-reporting/program-data/state/KY | D25: Various data sites | E25: Health Center Program Uniform Data System (UDS) data tables. | F25: National
B26: Department for Behavioral Health, Developmental and Intellectual Disabilities (DBHDID) Data Reports | C26: https://dbhdid.ky.gov/cmhc/datareports | D26: Community Mental Health Basic Statistical Reports | E26: Various reports to include SUD, SED, SMI, Crisis Stabilization, Deaf and Hard of Hearing, Mental Health, etc. | F26: State, County
B27: Drug Overdose Mortality Rates | C27: https://www.cdc.gov/nchs/state-stats/deaths/drug-overdose.html?CDC_AAref_Val=https://www.cdc.gov/nchs/pressroom/sosmap/drug_poisoning_mortality/drug_poisoning.htm | D27: CDC | E27: Overdose age-adjusted mortality rates | F27: State
B28: Federal Communications Commission | C28: https://www.fcc.gov/reports-research/maps/connect2health/map.html#ll=31.5,-96.4&z=4&t=broadband&hmt=opioid&bbm=fixed_access&dmf=none&ino=none&zlt=county | D28: Federal Communications Commission | E28: Interactive map linking broadband and health data | F28: County and State
B29: Health Workforce Shortage Area | C29: https://data.hrsa.gov/topics/health-workforce/shortage-areas | D29: U.S. Health Resources and Services Administration | E29: Data by geographic area, population, and facility Health Professions Shortage Area (HPSA) designations for primary care, dental health and mental health. | F29: State, County, Local Area
B30: Housing Needs By State | C30: https://nlihc.org/housing-needs-by-state/kentucky | D30: National Low Income Housing Coalition | E30: Data on low-income renter households, capacity of affordable and available rental housing, household income, and percentages of cost-burdened renters. | F30: State
B31: Housing Shelter Resources | C31: https://www.hud.gov/findshelter | D31: U.S. Department of Housing and Urban Development | E31: Provides information about housing, shelter, health care, food pantries, and clothing resources in communities across the country | F31: Location, Zip Code, Key Word
B32: Hunger in America | C32: https://nihcm.org/publications/hunger-in-america | D32: National Institute for Health Care Management Foundation | E32: Infographic that shows the connection between food security and health. | F32: National
B33: Kaiser XX Foundation | C33: https://www.kff.org/state-category/mental-health/ | D33: Various data sources | E33: Various mental health and substance use indicators | F33: State
B34: Kentucky - Demographics, Analytics, Trends and Access (KDATA) | C34: https://medicine.uky.edu/sites/default/files/2024-04/K%20DATA%20_%202024.pdf | D34: University of Kentucky | E34: Statewide mental health data | F34: State, Regional,
B35: Kentucky Health Map | C35: https://www.arcgis.com/apps/webappviewer/index.html?id=f6f5da6093bb4f6ebdbee7b9140b0838 | D35: EnviroHealthLink Community Snapshot Environmental Public Health Tracking Info. County Health Rankings Census Quick Facts Salud America! - Health Equity Report | E35: Various data sets from Environmental Public Health Tracking, QuickFacts census counts, data on health equity, etc. | F35: State, County, Health Department Info, Local Health Jurisdiction
B36: Kentucky Injury Prevention and Research Center (KIPRC) | C36: https://kiprc.uky.edu/resources | D36: Data on injury and violence-related research, data, services, outreach, communications, interventions, evaluation techniques, and policy development, at both the state government and academic levels. | E36: Statewide and academic level data. | F36: State, County
B37: Kids Count | C37: https://www.aecf.org/work/kids-count | D37: The Annie E. Casey Foundation | E37: Data on the educational, social, economic and physical well-being of children. | F37: National, State, Local
B38: KSPAN | C38: https://www.safekentucky.org/index.php/tbi-2 | D38: U.S. Census Bureau | E38: Traumatic Brain Injury data | F38: State
B39: Medically Underserved Areas | C39: https://data.hrsa.gov/tools/shortage-area/mua-find | D39: U.S. Health Resources and Services Administration | E39: Tool for data by geographic area, population, and facility Medically Underserved Area (MUA) or population (MUA/P) designations. | F39: State, County, Local Area
B40: Mental Health America | C40: https://mhanational.org/mhamapping/mha-state-county-data | D40: Various data sources | E40: Mental health data including anxiety, depression, suicide, PTSD, trauma or psychosis | F40: Zip code, county, state data
B41: Movement Advancement Project | C41: https://www.lgbtmap.org/equality_maps/profile_state/KY | D41: Movement Advancement Project (MAP) | E41: Tally and breakdown of laws and policies that support people who identify as LGBTQ+. | F41: State, District of Columbia, and Territory
B42: Movement Advancement Project | C42: https://www.lgbtmap.org/equality-maps/profile_state | D42: Various data sources | E42: Democracy, equity, and policy. LGBTQ+ | F42: State data
B43: National Center for Drug Abuse Statistics | C43: https://drugabusestatistics.org/drug-overdose-deaths/#kentucky | D43: Various data sources | E43: Drug overdose death rates. | F43: National, State
B44: National Center for Health Statistics | C44: https://www.cdc.gov/nchs/fastats/adolescent-health.htm | D44: CDC | E44: Adolescent Health Data | F44: State
B45: National Survey of Children's Health | C45: https://mchb.hrsa.gov/data-research/national-survey-childrens-health | D45: U.S. Health Resources and Services Administration | E45: Datasets and resources on household survey conducted annually that produces key measures of child health and well-being. | F45: National, State
B46: National Survey on Drug Use and Health (NSDUH) | C46: https://www.samhsa.gov/data/data-we-collect/nsduh-national-survey-drug-use-and-health | D46: U.S. Substance Abuse and Mental Health Services Administration (SAMHSA) | E46: Data on the use of tobacco, alcohol and illicit drugs; substance use disorders; receipt of substance use treatment; mental health issues; and the use of mental health services among the civilian, noninstitutionalized population aged 12 or older. | F46: National, State, County
B47: Nutrition, Physical Activity and Obesity: Data, Trends and Maps | C47: https://www.cdc.gov/nccdphp/dnpao/data-trends-maps | D47: CDC | E47: Demographic data on health status and behaviors to include fruits and vegetables, physical activity, sugar drinks, television watching, and obesity | F47: National, State and Territory
B48: Pregnancy Risk Assessment Monitoring System (PRAMS) | C48: https://www.cdc.gov/prams/index.html | D48: U.S. Centers for Disease Control and Prevention | E48: Identify groups of women and infants at high risk for health problems, to monitor changes in health status, and to measure progress towards goals in improving the health of mothers and infants through ongoing, site-specific, and population-based surveillance system. | F48: National
B49: Rural Health Information Hub (RHI) | C49: https://www.ruralhealthinfo.org/data-explorer?state=KY | D49: U.S. Census Small Area Income and Poverty Estimates | E49: Wide range of data on health disparities, health workforce, demographics, etc. | F49: National, State, County
B50: SAMHSA Data Tools | C50: https://datatools.samhsa.gov/ | D50: SAMHSA | E50: Various types of behavioral health data through SAMHSA data tools. | F50: Nation, State, Regional
B51: SAMHSA Interactive NSDUH State Estimates | C51: https://datatools.samhsa.gov/saes/state | D51: SAMHSA | E51: Prevalence of mental illness and substance use disorders Behavioral health service provision and use Evaluation data. | F51: Nation, State, Regional
B52: SAMHSA Uniform Reporting System (URS) | C52: https://www.samhsa.gov/data/data-we-collect/urs-uniform-reporting-system | D52: URS, State Mental Health agencies | E52: Sociodemographic characteristics of clients served, outcomes of care, use of selected evidence-based practices, client assessment of care, insurance status, living situation, employment status, and readmission to psychiatric hospitals | F52: National, State
B53: State Health Facts | C53: https://www.kff.org/statedata/ | D53: Kaiser Family Foundation (KFF) | E53: More than 800 health indicators from insurance status, population demographics, chronic disease(s), birth, death, mental health and substance use disorders, etc. | F53: National, State
B54: State Unintentional Drug Overdose Reporting System (SUDORS) Dashboard: Fatal Overdose Data | C54: https://www.cdc.gov/overdose-prevention/data-research/facts-stats/sudors-dashboard-fatal-overdose-data.html?CDC_AAref_Val=https://www.cdc.gov/drugoverdose/fatal/dashboard | D54: CDC | E54: Unintentional and undetermined intent drug overdose deaths collected from death certificates and medical examiner or coroner reports (including scene findings, autopsy reports, and full postmortem toxicology findings). | F54: National, State
B55: Statistical Atlas | C55: https://statisticalatlas.com/state/Kentucky/Population | D55: Florida Atlantic University using U.S. Census Bureau data | E55: Detailed demographic information on race, ethnicity, ancestry, income, employment, educational attainment, etc. | F55: National, State, and County
B56: Suicide Mortality Rates | C56: https://www.cdc.gov/nchs/pressroom/sosmap/suicide-mortality/suicide.htm | D56: CDC | E56: Suicide age-adjusted death rates | F56: State
B57: The Housing and Transportation (H+T) Affordability Index | C57: https://htaindex.cnt.org/ | D57: The Center for Neighborhood Technology | E57: Housing and transportation data using a cost model and drawing from national census, employer-household and transit data. | F57: Regional, Local
B58: The Trevor Project | C58: https://www.thetrevorproject.org/survey-2023/ | D58: Survey Data | E58: National Survey on LGBTQ Youth Mental Health | F58: National
B59: The Trevor Project | C59: https://www.thetrevorproject.org/survey-2021/?section=SuicideMentalHealth | D59: Survey Data | E59: National Survey on LGBTQ Youth Mental Health | F59: National
B60: The Trevor Project | C60: https://www.thetrevorproject.org/wp-content/uploads/2022/12/The-Trevor-Project-2022-National-Survey-on-LGBTQ-Youth-Mental-Health-by-State-Kentucky.pdf | D60: Survey Data | E60: National Survey on LGBTQ Youth Mental Health | F60: State
B61: T-MSIS Substance Use Disorder (SUD) Data Book: Treatment of SUD in Medicaid, 2019 | C61: https://www.medicaid.gov/medicaid/data-systems/macbis/medicaid-chip-research-files/transformed-medicaid-statistical-information-system-t-msis-analytic-files-taf#pbhi | D61: U.S. Health and Human Services | E61: Several data sources tailored for a broad research of Medicaid and CHIP data user community. | F61: State
B62: U.S. Census Bureau | C62: https://data.census.gov/all?q=kentucky | D62: U.S. Census Bureau | E62: Demographics survey with tables, such as (selected) social characteristics, housing characteristics, economic characteristics, and demographic and housing estimates. | F62: National, State, County, Census Tract, Zip Code
B63: U.S. Census Bureau | C63: https://www.census.gov/programs-surveys/acs/data.html | D63: American Community Survey | E63: Data Profiles with social, economic, housing, and demographic data for a single geographic area. The Data Profiles summarize the data, providing both estimates and percentages, to cover the most basic data on all American Community Survey topics. | F63: Geographic, State, National
B64: U.S. Census Bureau | C64: https://www.census.gov/quickfacts/fact/table/KY,US/PST045224 | D64: U.S. Census Bureau | E64: Demographics from the U.S. Census. | F64: National, State, County, City, and Town (populations of 5,000 or more)
B65: U.S. Department of Veterans Affair | C65: https://www.mentalhealth.va.gov/about/index.asp | D65: U.S. Department of Veterans Affair | E65: Mental health, suicide data reporting | F65: National, State
B66: United States Census Bureau | C66: https://data.census.gov/profile/Kentucky?g=040XX00US21 | D66: United States Census Bureau | E66: Demographic and population data on income, education, housing, employment, veteran status | F66: National, State, County
B67: United States Zip Codes | C67: https://www.unitedstateszipcodes.org/ky/ | D67: United States Zip Codes | E67: ZIP Codes and Counties in Kentucky | F67: National, State, County, Zip Code
B68: University of Louisville, Kentucky State Data Center | C68: https://centers.louisville.edu/kentucky-state-data-center | D68: U.S. Census Bureau with federal-state cooperative program | E68: Data Center at the University of Louisville is Kentucky's lead agency in the United States Census Bureau's State Data Center Program. | F68: County and State data
B69: USDA Economic Research Service U.S. Department of Agriculture | C69: https://www.ers.usda.gov/topics/food-nutrition-assistance/food-security-in-the-u-s/key-statistics-graphics/ | D69: U.S. Department of Agriculture | E69: Information on food security, food and nutrition assistance food security's effect on the well-being of children, adults, families and communities; food security's relationship to public policies, public assistance programs and the economy. in U.S. households | F69: National, State
B70: Web-based Injury Statistics Query and Reporting System (WISQARS) | C70: https://www.cdc.gov/injury/wisqars/ | D70: CDC | E70: Data on fatal and nonfatal injury, violent death, and cost of injury. | F70: National, Region, State
B71: Williams Institute LGBT Data and Demographic | C71: https://williamsinstitute.law.ucla.edu/visualization/lgbt-stats/?topic=LGBT#density | D71: Various data sources | E71: LGBT Data and Demographic | F71: National, State
B72: Youth Risk Behavioral Surveillance System (YRBSS) | C72: https://www.cdc.gov/healthyyouth/data/yrbs/ | D72: CDC | E72: A set of surveys that track behaviors that can lead to poor health in students grades 9 through 12. | F72: National, State, and Local School Districts

Sheet Geographical Service Area
B2: GEOGRAPHICAL SERVICE AREA
B3: Having an understanding of the geographical distribution of behavioral health needs and resources within the community is crucial for a CCBHC. This information enables effective resource allocation, precise targeting of interventions, the identification of disparities, and ensuring the CCBHC can provide equitable and impactful services to all segments of the community.
B4: Provide the required information in Table 1 and Table 2 relative to all agency service sites (CCBHC state-certified and non state-certified), including any contracted Designated Collaborating Organizations, (DCO), (if applicable).
B5: Instructions: Table 1: In Column 1, please provide the Department of Medicaid Services (DMS) location identifier (if applicable), as well as all other requested information. If additional space is needed, please use the "Geographical Service Area Tab 2". For your convenience, a link to the United States Zip Codes is provided in the Data Source Tab. See "Free Response Tab" for additional Geographical Service Area information required. If your agency has more than ten(10) provider and/or DCO sites, please provide additional site information in the Geographical Service Area Tab 2.
B6: Table 1: Provider CCBHC Site Information
B7: DMS Location Identifier, if applicable | C7: Provider Site Address | D7: Hours of Operation (include after hours and weekends) | E7: List County(s) Served (box will expand to accommodate multiple counties) | F7: Is this location CCBHC State Certified: Select Y or N | G7: List Zip Codes Served (box will expand to accommodate multiple ZIP codes)
B19: Instructions: Table 2, provide all requested information. If additional space is needed, please use the "Geographical Boundaries Tab 2". In the Contracted Core Services(s), you may select more than one core service from the drop-down list. Note: CCBHC criteria (updated March 2023) requires the CCBHC to deliver the majority of services by volume (51% or more) across all service categories (excluding Crisis Services).
B20: Table 2: DCO Site Information
B21: DCO Provider Name | C21: DCO Location Address | D21: Hours of Operation (include after hours and weekends) | E21: List County(s) Served (box will expand to accommodate multiple counties) | F21: Select the Contracted Core Service(s) Provided by this DCO (box will expand to accommodate multiple Core Service Selection) | G21: List Zip Codes Served (box will expand to accommodate multiple ZIP codes) | H21: Percentage of expected overall CCBHC Service Delivery
H22: %
H23: %
H24: %
H25: %
H26: %
H27: %
H28: %
H29: %
H30: %
H31: %

Sheet Geographical Service Area Tab 2
B2: GEOGRAPHICAL SERVICE AREA TAB 2
B4: Table 1: Provider CCBHC Site Information
B5: DMS Location Identifier, if applicable | C5: Provider Site Address | D5: Hours of Operation (include after hours and weekends) | E5: List County(s) Served (box will expand to accommodate multiple counties) | F5: Is this location CCBHC State Certified: Select Y or N | G5: List Zip Codes Served (box will expand to accommodate multiple ZIP codes)
B17: Table 2: DCO Site Information
B18: DCO Provider Name | C18: DCO Location Address | D18: Hours of Operation (include after hours and weekends) | E18: List County(s) Served (box will expand to accommodate multiple counties) | F18: Select the Contracted Core Service(s) Provided by this DCO (box will expand to accommodate multiple Core Service Selection) | G18: List Zip Codes Served (box will expand to accommodate multiple ZIP codes) | H18: Percentage of expected overall CCBHC Service Delivery
H19: %
H20: %
H21: %
H22: %
H23: %
H24: %
H25: %
H26: %
H27: %
H28: %

Sheet Regional Demographic Data
B2: REGIONAL DEMOGRAPHICS DATA
B3: Understanding the demographic profile of your service area is essential for tailoring behavioral health services to meet the unique needs of the community you serve. This data supports the identification of specific population groups that may require specialized support and ensures the services are inclusive and responsive to the diversity of the community. Capturing demographic data within your service area is essential to tailoring CCBHC services, allocating resources effectively, addressing disparities, and to ultimately improve the accessibility and quality of care for people receiving CCBHC services.
B4: Instructions: The table below captures demographic information for all populations within your service area. Please update the "County" column headers with the names of all counties in your service area. Note: For the "Population Total", provide the population for each "County" and "Statewide Total." (A link is provided in the "Data Source" tab for this information.) The "Service Area Population Total" will auto populate. When entering Statewide Total the average of "Service Area" box will auto populate. **If the "Service Area Population" total does not auto populate, you can calculate the overall total of service area population by adding the sum of all the County totals and including this total in the "Service Area Population. If the "Average of Service Area to Statewide Totals" box does not auto populate, you can calculate this average by dividing the "Service Area Population Total" by the "Statewide Total" to obtain this percentage. See "Free Response Questions" Tab for additional Demographics information required. Include assessment of all positive and/or negative trends identified. The data needed to complete the below requested information does not come from your E.H.R. or internal data sources. This information will be obtained from applicable links contained in the "Data Source" tab. The Data Source tab has a list of data resources with source, content, and data type to help complete this section. Please complete this section in its entirety. You may use estimated 2022 data for completion of this table.
B5: Table 3: CCBHC Service Area Demographics Data
C6: County 1 | D6: County 2 | E6: County 3 | F6: County 4 | G6: County 5 | H6: County 6 | I6: County 7 | J6: County 8 | K6: County 9 | L6: County 10 | M6: County 11 | N6: County 12 | O6: County 13 | P6: County 14 | Q6: County 15 | R6: County 16 | S6: County 17 | T6: County 18 | U6: County 19 | V6: County 20 | W6: Service Area Population Total | X6: Statewide Total (obtain from Data Source) | Y6: Average (%) of service area to statewide totals
B7: Population total | W7: =SUM(C7:V7) -> 0 | X7: 4526154 | Y7: =AVERAGE(W7/X7) -> 0
B9: Gender Assigned at Birth
B10: Male | W10: =AVERAGE(C10:V10) ->  | X10: 0.495
B11: Female | W11: =AVERAGE(C11:V11) ->  | X11: 0.505
B12: Age
B13: Persons under 18 years old | W13: =SUM(C13:V13) -> 0 | X13: 1011480
B14: Adult: 18 - 64 years old | W14: 0 | X14: =X7-X15 -> 3769715
B15: Senior: 65+ | W15: =SUM(C15:V15) -> 0 | X15: 756439
B16: Race and Hispanic Origin
B17: White alone | W17: =AVERAGE(C17:V17) ->  | X17: 0.869
B18: Black or African American alone | X18: 0.087
B19: American Indian and Alaska Native alone | X19: 0.003
B20: Asian | X20: 0.018
B21: Native Hawaiian and Other Pacific Islander | X21: 0.01
B22: Two or More Races | X22: 0.023
B23: Hispanic or Latino | X23: 0.043
B24: White alone, not Hispanic or Latino | X24: 0.832
B25: Other identified Ethnicity within your E.H.R. (Insert name) | X25: 0
B26: Underserved Populations
B27: Veterans | X27: 244703
B28: Homeless | X28: 3984
B29: Unsheltered | X29: 1084
B30: Emergency Shelter | X30: 2410
B31: Veteran Households | X31: 324
B32: Transitional Housing | X32: 490
B33: LGBTQA+ | X33: 0.105
B34: Transgender | X34: 0.0051
B35: Persons with disability, under the age of 65 years, 2018-2022 | X35: 0.133
B36: Internet/Broadband Access
B37: Households with a broadband internet subscription | X37: 0.856
B38: Households, 2018-2022 | X38: 0.916
B39: Education
B40: No High School Diploma | X40: 0.109
B41: High School Diploma | X41: 0.891
B42: Bachelors Degree or higher | X42: 0.343
B43: Household Income, Health Insurance, and Poverty
B44: Median household income, $ amount | X44: 75149
B45: Average Persons per household (Insert number) | X45: 2.57
B46: Person's in poverty | X46: 0.115
B47: Persons without health insurance, under the age of 65 years | X47: 0.093
B48: Language Spoken at Home
B49: English | X49: 0.941
B50: Spanish | X50: 0.028
B51: Asian and Pacific Islander Language | X51: 0.01
B52: Other Language (Please insert, if applicable) Statewide Indo-European Language | X52: 0.015
B53: Other Language (Please insert, if applicable) | X53: 0.007
B54: Frequent Suicidal Ideation Rates by County and Poor Mental Health in Service Area
B55: Number of Individuals Reporting Frequent Suicidal Ideation (per 100,000 of County Population) | X55: 171
B56: Percent of adults reporting poor mental health for 14 or more of the last 30 days | X56: 0.161
B57: Percent of adults reporting poor physical health for 14 or more of the last 30 days | X57: 0.219
B58: Employment Status
B59: Armed Forces | X59: 34457
B60: Employed | X60: 0.568
B61: Unemployed | X61: 0.043
B62: Transportation
B63: Patients who do not have access to transportation | X63: 0.232
B64: Food Insecurity
B65: Patients reporting lack of access to healthy foods | X65: 0.144
B66: Suicide Deaths
B67: Average Deaths per 100,000 population across regional counties | X67: 0.179
B68: Instructions: The table below captures information related to your 2021 Community Needs Assessment. Please update the “clients served” (highlighted in grey) for each diagnosis. The remaining cells will auto calculate. Note: If the cells below do not auto calculate here is the methodology used: Methodology: For SMI, an estimated 23.77% of Kentucky adults have experienced any mental illness in the past 12 months (NSDUH). This estimate was used as proxy to measure behavioral health need among the adult population in each county. To calculate the overall penetration rate, the total number of adult clients who received behavioral health services at the CMHC was divided by the total number of adults estimated to have a behavioral health need.
B69: Serious Mental Illness (SMI) - Overall penetration
B70: Estimated Adult Census | C70: =C14+C15 -> 0 | D70: =D14+D15 -> 0 | E70: =E14+E15 -> 0 | F70: 0 | G70: 0 | H70: 0 | I70: 0 | J70: 0 | K70: 0 | L70: 0 | M70: 0 | N70: 0 | O70: 0 | P70: 0 | Q70: 0 | R70: 0 | S70: 0 | T70: 0 | U70: 0 | V70: 0 | W70: =SUM(C70:V70) -> 0 | X70: =X7 -> 4526154
B71: Estimated SMI Prevalence 23.77% | C71: =SUM(C70*0.2377) -> 0 | D71: =SUM(D70*0.2377) -> 0 | E71: =SUM(E70*0.2377) -> 0 | F71: =SUM(F70*0.2377) -> 0 | G71: =SUM(G70*0.2377) -> 0 | H71: 0 | I71: 0 | J71: 0 | K71: 0 | L71: 0 | M71: 0 | N71: 0 | O71: 0 | P71: 0 | Q71: 0 | R71: 0 | S71: 0 | T71: 0 | U71: 0 | V71: 0 | W71: =SUM(C71:V71) -> 0 | X71: =X70*0.2377 -> 1075866.806
B72: Number of BH Clients Served | W72: =SUM(C72:V72) -> 0 | X72: =X71*0.2377 -> 255733.5397
B73: Penetration Rate (%) | C73: =SUM(C72/C71) ->  | D73: =SUM(D72/D71) ->  | M73: =SUM(M72/M71) ->  | N73: =SUM(N72/N71) ->  | R73: =SUM(R72/R71) ->  | W73: =AVERAGEIF(C73:V73, ">0") ->  | X73: 0.2377
B74: Serious Mental Illness (SMI) Penetration by Race and Ethnicity
B75: White alone | C75: =SUM(C17*0.2377) -> 0 | D75: =SUM(D17*0.2377) -> 0 | E75: 0 | F75: 0 | G75: 0 | H75: 0 | I75: 0 | J75: 0 | K75: 0 | L75: 0 | M75: 0 | N75: 0 | O75: 0 | P75: 0 | Q75: 0 | R75: 0 | S75: 0 | T75: 0 | U75: 0 | V75: 0 | W75: =AVERAGEIF(C75:V75,">0") ->  | X75: =X17*0.2377 -> 0.2065613
B76: Black or African American alone | C76: =SUM(C18*0.2377) -> 0 | D76: 0 | E76: 0 | F76: 0 | G76: 0 | H76: 0 | I76: 0 | J76: 0 | K76: 0 | L76: 0 | M76: 0 | N76: 0 | O76: 0 | P76: 0 | Q76: 0 | R76: 0 | S76: 0 | T76: 0 | U76: 0 | V76: 0 | W76: =AVERAGEIF(C76:V76,">0") ->  | X76: =X18*0.2377 -> 0.0206799
B77: American Indian and Alaska Native alone | C77: =SUM(C19*0.2377) -> 0 | D77: 0 | E77: 0 | F77: 0 | G77: 0 | H77: 0 | I77: 0 | J77: 0 | K77: 0 | L77: 0 | M77: 0 | N77: 0 | O77: 0 | P77: 0 | Q77: 0 | R77: 0 | S77: 0 | T77: 0 | U77: 0 | V77: 0 | X77: 0.0007131
B78: Asian | C78: =SUM(C20*0.2377) -> 0 | D78: 0 | E78: 0 | F78: 0 | G78: 0 | H78: 0 | I78: 0 | J78: 0 | K78: 0 | L78: 0 | M78: 0 | N78: 0 | O78: 0 | P78: 0 | Q78: 0 | R78: 0 | S78: 0 | T78: 0 | U78: 0 | V78: 0 | X78: 0.0042786
B79: Native Hawaiian and Other Pacific Islander | C79: =SUM(C21*0.2377) -> 0 | D79: 0 | E79: 0 | F79: 0 | G79: 0 | H79: 0 | I79: 0 | J79: 0 | K79: 0 | L79: 0 | M79: 0 | N79: 0 | O79: 0 | P79: 0 | Q79: 0 | R79: 0 | S79: 0 | T79: 0 | U79: 0 | V79: 0 | X79: 0.002377
B80: Two or More Races | C80: =SUM(C22*0.2377) -> 0 | D80: 0 | E80: 0 | F80: 0 | G80: 0 | H80: 0 | I80: 0 | J80: 0 | K80: 0 | L80: 0 | M80: 0 | N80: 0 | O80: 0 | P80: 0 | Q80: 0 | R80: 0 | S80: 0 | T80: 0 | U80: 0 | V80: 0 | X80: 0.0054671
B81: Hispanic or Latino | C81: =SUM(C23*0.2377) -> 0 | D81: 0 | E81: 0 | F81: 0 | G81: 0 | H81: 0 | I81: 0 | J81: 0 | K81: 0 | L81: 0 | M81: 0 | N81: 0 | O81: 0 | P81: 0 | Q81: 0 | R81: 0 | S81: 0 | T81: 0 | U81: 0 | V81: 0 | X81: 0.0102211
B82: White alone, not Hispanic or Latino | C82: =SUM(C24*0.2377) -> 0 | D82: 0 | E82: 0 | F82: 0 | G82: 0 | H82: 0 | I82: 0 | J82: 0 | K82: 0 | L82: 0 | M82: 0 | N82: 0 | O82: 0 | P82: 0 | Q82: 0 | R82: 0 | S82: 0 | T82: 0 | U82: 0 | V82: 0 | X82: 0.1977664
B83: Other identified Ethnicity within your E.H.R. (Insert name) | C83: =SUM(C25*0.2377) -> 0 | D83: 0 | E83: 0 | F83: 0 | G83: 0 | H83: 0 | I83: 0 | J83: 0 | K83: 0 | L83: 0 | M83: 0 | N83: 0 | O83: 0 | P83: 0 | Q83: 0 | R83: 0 | S83: 0 | T83: 0 | U83: 0 | V83: 0 | X83: =W25*0.2377 -> 
B84: Serious Mental Illness (SMI)
B85: Estimated Adult Census | C85: =C14+C15 -> 0 | D85: =D14+D15 -> 0 | E85: 0 | F85: 0 | G85: 0 | H85: 0 | I85: 0 | J85: 0 | K85: 0 | L85: 0 | M85: 0 | N85: 0 | O85: 0 | P85: 0 | Q85: 0 | R85: 0 | S85: 0 | T85: 0 | U85: 0 | V85: 0 | W85: =SUM(C85:V85) -> 0 | X85: 4526154
B86: Estimated SMI Prevalence 7.08% | C86: =C85*0.0708 -> 0 | D86: =D85*0.0708 -> 0 | E86: 0 | F86: 0 | G86: 0 | H86: 0 | I86: 0 | J86: 0 | K86: 0 | L86: 0 | M86: 0 | N86: 0 | O86: 0 | P86: 0 | Q86: 0 | R86: 0 | S86: 0 | T86: 0 | U86: 0 | V86: 0 | W86: =SUM(C86:V86) -> 0 | X86: =X85*0.0708 -> 320451.7032
B87: Number of SMI Clients Served | W87: 0 | X87: =X86*0.0708 -> 22687.98059
B88: Penetration Rate (%) | C88: =C87/C86 ->  | D88: =D87/D86 ->  | W88: =AVERAGEIF(C88:V88,">0") ->  | X88: =X87/X86 -> 0.0708
B89: Serious Emotional Disturbance (SED)
B90: Estimated Child Census | C90: =SUM(C14+C15) -> 0 | D90: =SUM(D14+D15) -> 0 | E90: 0 | F90: 0 | G90: 0 | H90: 0 | I90: 0 | J90: 0 | K90: 0 | L90: 0 | M90: 0 | N90: 0 | O90: 0 | P90: 0 | Q90: 0 | R90: 0 | S90: 0 | T90: 0 | U90: 0 | V90: 0 | W90: =SUM(C90:V90) -> 0 | X90: 1011480
B91: Estimated SED Prevalence 8% | C91: =SUM(C90*0.08) -> 0 | D91: =SUM(D90*0.08) -> 0 | E91: 0 | F91: 0 | G91: 0 | H91: 0 | I91: 0 | J91: 0 | K91: 0 | L91: 0 | M91: 0 | N91: 0 | O91: 0 | P91: 0 | Q91: 0 | R91: 0 | S91: 0 | T91: 0 | U91: 0 | V91: 0 | W91: =SUM(C91:V91) -> 0 | X91: =X90*0.08 -> 80918.4
B92: Number of SED Clients Served | W92: 0 | X92: 22621
B93: Penetration Rate | C93: =C92/C91 ->  | D93: =D92/D91 ->  | W93: =AVERAGEIF(C93:V93,">0") ->  | X93: =SUM(X92/X91) -> 0.2795532289
B94: Substance Use Disorder (SUD), Adult
B95: Estimated Adult Census | C95: =C14+C15 -> 0 | D95: =D14+D15 -> 0 | E95: 0 | F95: 0 | G95: 0 | H95: 0 | I95: 0 | J95: 0 | K95: 0 | L95: 0 | M95: 0 | N95: 0 | O95: 0 | P95: 0 | Q95: 0 | R95: 0 | S95: 0 | T95: 0 | U95: 0 | V95: 0 | W95: =SUM(C95:V95) -> 0 | X95: 4526154
B96: Estimated Adult SUD Prevalence 17.41% | C96: =C95*0.1741 -> 0 | D96: =D95*0.1741 -> 0 | E96: 0 | F96: 0 | G96: 0 | H96: 0 | I96: 0 | J96: 0 | K96: 0 | L96: 0 | M96: 0 | N96: 0 | O96: 0 | P96: 0 | Q96: 0 | R96: 0 | S96: 0 | T96: 0 | U96: 0 | V96: 0 | W96: =SUM(C96:V96) -> 0 | X96: =X95*0.1741 -> 788003.4114
B97: Number of SUD Adult Clients Served | W97: =SUM(C97:V97) -> 0 | X97: =X96*0.1741 -> 137191.3939
B98: Penetration Rate | C98: =C97/C96 ->  | D98: =D97/D96 ->  | W98: =AVERAGEIF(C98:V98,">0") ->  | X98: =X97/X96 -> 0.1741
B99: Substance Use Disorder (SUD), Youth (12-17)
B100: Youth Census (12-17) | C100: =C13 -> 0 | D100: =D13 -> 0 | E100: 0 | F100: 0 | G100: 0 | H100: 0 | I100: 0 | J100: 0 | K100: 0 | L100: 0 | M100: 0 | N100: 0 | O100: 0 | P100: 0 | Q100: 0 | R100: 0 | S100: 0 | T100: 0 | U100: 0 | V100: 0 | W100: =AVERAGE(C100:V100) -> 0 | X100: 1011480
B101: Estimated Youth SUD Prevalence 8.40% | C101: =C100*0.084 -> 0 | D101: =D100*0.084 -> 0 | E101: 0 | F101: 0 | G101: 0 | H101: 0 | I101: 0 | J101: 0 | K101: 0 | L101: 0 | M101: 0 | N101: 0 | O101: 0 | P101: 0 | Q101: 0 | R101: 0 | S101: 0 | T101: 0 | U101: 0 | V101: 0 | W101: 0 | X101: =X100*0.084 -> 84964.32
B102: Number of SUD Youth Clients Served | X102: =X101*0.084 -> 7137.00288
B103: Penetration Rate | C103: =C102/C101 ->  | D103: =D102/D101 ->  | W103: =AVERAGEIF(C103:V103,">0") ->  | X103: =X102/X101 -> 0.084

Sheet Prevalence MH & SUD
B2: PREVALENCE OF MENTAL HEALTH AND SUBSTANCE USE DISORDER(S)
B3: Understanding the occurrence of mental health and substance use conditions in your service area is essential to identifying the most crucial behavioral health needs. By examining pertinent behavioral health data, the CCBHC can focus their services accordingly.
B4: *Data for this table may be obtained from your agency's electronic health record (EHR) as well as stakeholder engagement activities*
B5: Instructions: Utilize agency-specific data to identified the primary behavioral health diagnoses identified from the last three (3) consecutive calendar years e.g., Years 1 (2021). The Primary Behavioral Health Diagnoses should be documented broadly not specifically (e.g., depressive disorders, mood [affective] disorders, anxiety, etc.) Please update the column headers to reflect the years reported. See" Free Response Questions" Tab for additional "Prevalence of Mental Health and Substance Use" information required.
B6: *Data for this table may be obtained from your agency EHR as well as stakeholder engagement activities*
B7: Table 4: Primary Behavioral Health Diagnoses
D8: Year 1 (2021) | F8: Year 2 (2022) | H8: Year 3 (2023)
B9: Primary Behavioral Health Diagnoses | D9: Total % of your service population | F9: Total % of your service population | H9: Total % of your service population
B16: Instructions: For this table, utilize agency-specific data to identify the primary substances associated with substance use disorder from the last three (3) consecutive calendar years e.g., Years 1 (2021). The Substances Associated with Substance Use Disorder should be documented broadly not specifically (e.g., alcohol, opioids, stimulants, etc.) Please update the column headers to reflect the years reported.
B17: *Data for this table may be obtained from your agency EHR as well as stakeholder engagement activities*
B18: Table 5: Substances Associated with Substance Use Disorder
D19: Year 1 (XXXX) | F19: Year 2 (XXXX) | H19: Year 3 (XXXX)
B20: Substances Associated with Substance Use Disorders | D20: Total % of your service population | F20: Total % of your service population | H20: Total % of your service population
B27: Instructions: For this table, utilize agency-specific data to list the primary comorbid conditions identified from the last three consecutive calendar years e.g., Years 1 (2021). Please update the column headers to reflect the years reported. Comorbid conditions definition: two disorders/Illnesses present in a person with a Serious Mental Illness (SMI) or SUD (including physical conditions.)
B28: *Data for this table may be obtained from your agency EHR as well as stakeholder engagement activities*
B29: Table 6: Comorbidities
D30: Year 1 (XXXX) | F30: Year 2 (XXXX) | H30: Year 3 (XXXX)
B31: Comorbidities | D31: Total % of people within your service area | F31: Total % of people within your service area | H31: Total % of people within your service area
B33: 2
B34: 3
B35: 4
B36: 5
B38: Instructions: Table 7 will calculate your overall behavioral health penetration rates for each of the last three calendar years. By entering the total number of people served for each population, this table will calculate your overall penetration rates. The total population should be obtained from the "Regional Demographics Tab" and entered into the total population cell. Please update the column headers to reflect the years reported. Note: If the cells in Table 7 do not auto populate the "Overall Percent of Service Area Population", you may calculate this number by dividing the sum of people served by the total population. Serious Mental illness (SMI): A mental, behavioral, or emotional disorder resulting in serious functional impairment, which substantially interferes with or limits one or more major life activities. Serious Emotional Disturbance (SED): An individual with a designated mental illness diagnosis. Substance Use Disorder (SUD): An Individual with alcohol or illicit drug dependence or abuse.
B39: *Data for this table may be obtained from your agency EHR as well as stakeholder engagement activities*
B40: Table 7: Current Consecutive Behavioral Health Penetration Rates
B41: Year 1 (2021)
B43: Total Population | C43: 0
C44: # of People Served | G44: Overall % of Service Area Population
B45: Gender | C45: SMI | D45: SED | E45: SUD | G45: SMI | H45: SED | I45: SUD
B46: Female | C46: 0 | D46: 0 | E46: 0 | G46: =C46/C43 ->  | H46: =D46/C43 ->  | I46: =E46/C43 -> 
B47: Male | C47: 0 | D47: 0 | E47: 0 | G47: =C47/C43 ->  | H47: =D47/C43 ->  | I47: =E47/C43 -> 
B48: Age
B49: Age Group 0-17 | C49: 0 | D49: 0 | E49: 0 | G49: =C49/C43 ->  | H49: =D49/C43 ->  | I49: =E49/C43 -> 
B50: Age Group 18 - 64 | C50: 0 | D50: 0 | E50: 0 | G50: =SUM(C50/C43) ->  | H50: =D50/C43 ->  | I50: =E50/C43 -> 
B51: Age Group 65+ | C51: 0 | D51: 0 | E51: 0 | G51: =C51/C43 ->  | H51: =D51/C43 ->  | I51: =E51/C43 -> 
B52: Race/Ethnicity
B53: White | C53: 0 | D53: 0 | E53: 0 | G53: =C53/C43 ->  | H53: =D53/C43 ->  | I53: =E53/C43 -> 
B54: Black | C54: 0 | D54: 0 | E54: 0 | G54: =C54/C43 ->  | H54: =D54/C43 ->  | I54: =E54/C43 -> 
B55: Asian | C55: 0 | D55: 0 | E55: 0 | G55: =C55/C43 ->  | H55: =D55/C43 ->  | I55: =E55/C43 -> 
B56: Hispanic | C56: 0 | D56: 0 | E56: 0 | G56: =C56/C43 ->  | H56: =D56/C43 ->  | I56: =E56/C43 -> 
B57: Other | C57: 0 | D57: 0 | E57: 0 | G57: =C57/C43 ->  | H57: =D57/C43 ->  | I57: =E57/C43 -> 
B59: Year 2 (XXXX)
B61: Total Population | C61: 0
C62: # of People Served | G62: Overall % of Service Area Population
B63: Gender | C63: SMI | D63: SED | E63: SUD | G63: SMI | H63: SED | I63: SUD
B64: Female | C64: 0 | D64: 0 | E64: 0 | G64: =C64/C61 ->  | H64: =D64/C61 ->  | I64: =E64/C61 -> 
B65: Male | C65: 0 | D65: 0 | E65: 0 | G65: =C65/C61 ->  | H65: =D65/C61 ->  | I65: =E65/C61 -> 
B66: Age
B67: Age Group 0-17 | C67: 0 | D67: 0 | E67: 0 | G67: =C67/C61 ->  | H67: =D67/C61 ->  | I67: =E67/C61 -> 
B68: Age Group 18 - 64 | C68: 0 | D68: 0 | E68: 0 | G68: =SUM(C68/C61) ->  | H68: =D68/C61 ->  | I68: =E68/C61 -> 
B69: Age Group 65+ | C69: 0 | D69: 0 | E69: 0 | G69: =C69/C61 ->  | H69: =D69/C61 ->  | I69: =E69/C61 -> 
B70: Race/Ethnicity
B71: White | C71: 0 | D71: 0 | E71: 0 | G71: =C71/C61 ->  | H71: =D71/C61 ->  | I71: =E71/C61 -> 
B72: Black | C72: 0 | D72: 0 | E72: 0 | G72: =C72/C61 ->  | H72: =D72/C61 ->  | I72: =E72/C61 -> 
B73: Asian | C73: 0 | D73: 0 | E73: 0 | G73: =C73/C61 ->  | H73: =D73/C61 ->  | I73: =E73/C61 -> 
B74: Hispanic | C74: 0 | D74: 0 | E74: 0 | G74: =C74/C61 ->  | H74: =D74/C61 ->  | I74: =E74/C61 -> 
B75: Other | C75: 0 | D75: 0 | E75: 0 | G75: =C75/C61 ->  | H75: =D75/C61 ->  | I75: =E75/C61 -> 
B77: Year 3 (XXXX)
B79: Total Population | C79: 0
C80: # of People Served | G80: Overall % of Service Area Population
B81: Gender | C81: SMI | D81: SED | E81: SUD | G81: SMI | H81: SED | I81: SUD
B82: Female | C82: 0 | D82: 0 | E82: 0 | G82: =C82/C79 ->  | H82: =D82/C79 ->  | I82: =E82/C79 -> 
B83: Male | C83: 0 | D83: 0 | E83: 0 | G83: =C83/C79 ->  | H83: =D83/C79 ->  | I83: =E83/C79 -> 
B84: Age
B85: Age Group 0-17 | C85: 0 | D85: 0 | E85: 0 | G85: =SUM(C85/C79) ->  | H85: =D85/C79 ->  | I85: =E85/C79 -> 
B86: Age Group 18 - 64 | C86: 0 | D86: 0 | E86: 0 | G86: =SUM(C86/C79) ->  | H86: =D86/C79 ->  | I86: =E86/C79 -> 
B87: Age Group 65+ | C87: 0 | D87: 0 | E87: 0 | G87: =SUM(C87/C79) ->  | H87: =D87/C79 ->  | I87: =E87/C79 -> 
B88: Race/Ethnicity
B89: White | C89: 0 | D89: 0 | E89: 0 | G89: =C89/C79 ->  | H89: =D89/C79 ->  | I89: =E89/C79 -> 
B90: Black | C90: 0 | D90: 0 | E90: 0 | G90: =C90/C79 ->  | H90: =D90/C79 ->  | I90: =E90/C79 -> 
B91: Asian | C91: 0 | D91: 0 | E91: 0 | G91: =C91/C79 ->  | H91: =D91/C79 ->  | I91: =E91/C79 -> 
B92: Hispanic | C92: 0 | D92: 0 | E92: 0 | G92: =C92/C79 ->  | H92: =D92/C79 ->  | I92: =E92/C79 -> 
B93: Other | C93: 0 | D93: 0 | E93: 0 | G93: =C93/C79 ->  | H93: =D93/C79 ->  | I93: =E93/C79 -> 
B95: Instructions: The three (3) year average penetration rate will auto populate based on the data provided in Table 7. Note: If the links in Table 8 do not calculate, you may calculate the three (3) year average by adding each year total together (Year 1 + Year 2 + Year 3) then divide the total by three (3). The total will be the three (3) year average penetration rate.
B96: Table 8: Three (3) Year Average Penetration Rate
C97: Three Year Overall Average Penetration Rates
B98: Gender | C98: SMI | E98: SED | G98: SUD
B99: Female | C99: =(G46+G64+G82)/3 ->  | E99: =(H46+H64+H82)/3 ->  | G99: =(I46+I64+I82)/3 -> 
B100: Male | C100: =(G47+G65+G83)/3 ->  | E100: =(H47+H65+H83)/3 ->  | G100: =(I47+I65+I83)/3 -> 
B101: Age
B102: Age Group 0-17 | C102: =(G49+G67+G85)/3 ->  | E102: =(H49+H67+H85)/3 ->  | G102: =(I49+I67+I85)/3 -> 
B103: Age Group 18 - 64 | C103: =(G50+G68+G86)/3 ->  | E103: =(H50+H68+H86)/3 ->  | G103: =(I50+I68+I86)/3 -> 
B104: Age Group 65+ | C104: =(G51+G69+G87)/3 ->  | E104: =(H51+H69+H87)/3 ->  | G104: =(I51+I69+I87)/3 -> 
B105: Race/Ethnicity
B106: White | C106: =(G53+G71+G89)/3 ->  | E106: =(H53+H71+H89)/3 ->  | G106: =(I53+I71+I89)/3 -> 
B107: Black | C107: =(G54+G72+G90)/3 ->  | E107: =(H54+H72+H90)/3 ->  | G107: =(I54+I72+I90)/3 -> 
B108: Asian | C108: =(G55+G73+G91)/3 ->  | E108: =(H55+H73+H91)/3 ->  | G108: =(I55+I73+I91)/3 -> 
B109: Hispanic | C109: =(G56+G74+G92)/3 ->  | E109: =(H56+H74+H92)/3 ->  | G109: =(I56+I74+I92)/3 -> 
B110: Other | C110: =(G57+G75+G93)/3 ->  | E110: =(H57+H75+H93)/3 ->  | G110: =(I57+I75+I93)/3 -> 

Sheet Stakeholder Engagement
B2: STAKEHOLDER ENGAGEMENT
B3: The purpose of stakeholder engagement is to ensure that interested stakeholders within the community are given the opportunity to provide valuable insight into the behavioral health and socio economic needs of the people within their community. Stakeholder engagement should gather input in regards to: • Cultural, linguistic, physical health, and behavioral health treatment needs; • Evidence-based practices and behavioral health crisis services; • Access and availability of CCBHC services including days, times, and locations, and telehealth options; and • Potential barriers to care such as geographic barriers, transportation challenges, economic hardship, lack of culturally responsive services, and workforce shortages.
B4: It is expected that the CCBHC will conduct at least two or more separate and different types of stakeholder engagement activities (interview, survey, focus group, meetings) with the identified stakeholder engagement types to include: • Representative from different agencies, • Persons with lived experience, • People receiving services from a CCBHC, and • People not engaging with health services, etc.
B5: The CCBHCs are required to document their findings from these stakeholder engagement efforts and/or data analysis. The findings from stakeholder engagement activities can provide valuable insights and assist the CCBHC in gathering comprehensive information to further advance the CCBHC model.
B6: Instructions: For Table 9, from the drop-down box select the type of outreach conducted during the stakeholder engagement activities. You may select more than one type of outreach activity. If the type of outreach activity is not listed, select "Other" and describe the outreach activity conducted in the "Other" column. See "Free Response Questions" Tab for additional "Stakeholder Engagement" information required.
B7: Table 9: Stakeholder Engagement Type
B8: Recommended Stakeholder Types | C8: Type of Outreach (box will expand to accommodate multiple Stakeholder Types) | D8: If Other, please provide description
B9: Aging and Disability Resource Centers
B10: Child welfare agencies, state licensed, and national accredited child placing agencies for therapeutic foster care service
B11: Criminal justice and/or juvenile justice agencies and facilities
B12: Crisis response partners (hospital emergency departments, emergency responders, crisis stabilization settings, crisis call centers, and warmlines)
B13: Employment services systems
B14: Food Banks
B15: Health centers (including FQHCs in the service area)
B16: Homeless shelters and housing agencies
B17: Housing Authority
B18: Inpatient psychiatric facilities, inpatient acute care hospitals, and hospital outpatient clinics
B19: Local health departments (Note: these departments also develop community needs assessments that may be helpful)
B20: One or more Department of Veterans Affairs facilities
B21: Organizations operated by people with lived experience of mental health and substance use conditions
B22: Other mental health and SUD treatment providers in the community
B23: Other social and human services (e.g., domestic violence centers, pastoral services, grief counseling, Affordable Care Act navigators, food and transportation programs)
B24: Peer-run and operated service providers
B25: People with lived experience of mental and substance use conditions and individuals who have received/are receiving services from the clinic conducting the needs assessment
B26: Representatives from local K-12 school systems
B27: Residential programs
B28: Services for older adults, such as Area Agencies on Aging
B29: Specialty providers of medications for treatment of opioid and alcohol use disorders
B30: Other identified community stakeholder(s)
B31: Instructions: For Table 10, collate the number and types of engagements performed in Table 9 (Other, Focus Groups, Interviews, Meetings, and Surveys) and put the number in the "Number of Engagements" column.
B32: Table 10: Stakeholder Engagement Overview Type
B33: Type of Engagement | C33: Number of Engagements
B34: Focus Groups
B35: Interviews
B36: Meetings
B37: Surveys
B38: Other

Sheet Stakeholder Engagement Summary
B2: STAKEHOLDER ENGAGEMENT ACTIVITIES SUMMARY
B4: Instructions: For Table 11, summarize your agency’s stakeholder engagement activities. Please provide the following in your response. • The agenda topics discussed for each stakeholder engagement, • Detailed Summary of findings, (The agenda topics discussed for each stakeholder engagement) • Key Takeaways including any identified barriers, concerns and suggestions, and noteworthy insights.
B5: Include an action plan on how your agency will incorporate these findings into the agency Continuous Quality Improvement (CQI) activities and/or agency business practices.
B6: Table 11: Stakeholder Engagement Activities Summary
B7: Primary Agenda Items/Themes
B9: Detailed Summary of findings
B11: Key Takeaways
B13: Action Plan

Sheet Assessment of Staffing
B2: ASSESSMENT OF STAFFING / STAFFING PLAN
B3: Assessing your agency's general staffing requirements and needs will help to ensure a core workforce is comprised of clinical, peer, and other staff. Assessing staffing levels on a regular basis allows your agency to identify potential gaps in service delivery and treatment needs and ensures appropriate resources are allocated to meet the behavioral health needs of the community effectively and efficiently. Aligning the staffing plan with the findings of the needs assessment ensures that the CCBHC has the right workforce to meet the community’s needs. It helps identify potential gaps or areas where additional training and resources may be needed.
B4: Instructions: In the table below, provide the number of current staff by Position Title. Also, please include the number of position vacancies. If there are no vacant positions, please put a 0 in the cell. Please provide the requested information in the "Other Positions not listed" section, if applicable. Comparative assessment of staffing levels, allows for the opportunity to identify any trends or barriers related to staffing needs. Agency should review 2021 staffing data and compare to current report. Any identified trends or barriers related to staffing levels/needs should be reported in the Summary of Findings tab. See "Free Response Questions" Tab for additional "Assessment of Staffing / Staffing Plan" information required.
B5: Staffing (Provide staffing level counts within the previous three (3) months of Community Needs Assessment completion)
B6: Position Title | C6: Number of Staff by Position(s)
B7: Therapist
B8: Certified Alcohol and Drug Counselor (CADC) I or II
B9: Certified Alcohol and Drug Counselor Associate (CADCA)
B10: Certified Social Worker (CSW)
B11: Clinical Psychologist (PHD)
B12: Licensed Alcohol and Drug Counselor (LADC)
B13: Licensed Clinical Alcohol and Drug Counselor (LCADC)
B14: Licensed Clinical Alcohol and Drug Counselor Associate (LCADCA)
B15: Licensed Clinical Service Worker (LCSW)
B16: Licensed Marriage and Family Therapist (LMFT)
B17: Licensed Professional Clinical Counselor (LPCC)
B18: Licensed Professional Counselor Associate (LPCA)
B19: Licensed Psychological Associate (LPA)
B20: Licensed Social Worker (LSW)
B21: Marriage and Family Therapy Associates (MFTA)
B22: Prescribers
B23: Advanced Practice Registered Nurse
B24: MD/DO
B25: Physician Assistant
B26: Psychiatrist
B27: Clinic Staff and Support
B28: Community Health Worker
B29: Community Support Associates
B30: Mental Health Associates
B31: Nurse / Registered Nurse (RN)
B32: Peer Support Specialist
B33: Targeted Case Manager
B34: Other Positions not Listed

Sheet Accessibility Availability Serv
B2: ACCESSIBLITY AND AVAILABILITY OF SERVICES
B3: The understanding of how available and accessible behavioral health services are to people in your community is a critical step for a CCBHC. This comprehension empowers the CCBHC to effectively bridge service gaps, diminish accessibility barriers, and tailor interventions to meet the unique requirements of the population, thus promoting equitable and impactful healthcare provision.
B4: Instructions: Please provide clear detailed responses that directly address the request(s) for information below. Be specific with details to the best of your ability.
B5: Provide examples of how the agency provides easily accessible and available services to all individuals in the community including underserved populations.
B7: Discuss the identified obstacles or barriers that hinder the accessibility and availability of behavioral health services in your service area.

Sheet Cultural & Linguistic
B2: CULTURAL AND LINGUISTIC DIVERSITY NEEDS
B3: Cultural and linguistically appropriate services are respectful of and responsive to the health beliefs, practices, and needs of diverse consumers. The Cultural and Linguistic assessment aims to ensure services provided by the CCBHC are in alignment with the principles of Cultural and Linguistic Appropriate Services (CLAS). CLAS refers to a set of standards and practices designed to ensure that healthcare services are respectful of and responsive to the diverse cultural and linguistic needs of the communities served.
B4: *Data for this table may be obtained from your agency's EHR as well as stakeholder engagement activities*
B5: Instructions: For Table 12, from the drop-down list provide the cultural populations identified within your service area and the accommodations your agency provides for each population. If "Other" is selected, please provide the type of accommodation in the appropriate column. See "Free Response Questions" Tab for additional information required.
B6: * An expanded list and definition of cultural, non-English, and linguistic diversity can be found in the "Terms & Definitions" tab.
B7: Column 1: Cultural Populations: provide the name of the various populations identified in the agency service area e.g. Asian, Military culture, ethnicity, religious beliefs, etc. Column 2: Accommodations: Select current accommodations for the cultural population identified. (You may select more than one) Gender-Concordant Care: the provider of care and the patient are the same sex. Promote Cultural Awareness: agency ensures staff and providers can appropriately acknowledge and respond to cultural difference and needs. Religious Accommodations: agency identifies and appropriately accommodates a person’s religious beliefs. Staff Training: staff receive training specific to identified cultures (to include appropriate staff behaviors and skills) to deliver high-quality culturally appropriate care. Other: e.g. intake forms/interpreters (sign language)/bilingual therapist, staff training.
B8: Table 12: Most recent 1 Year Data on Cultural Populations within your Service Area
B9: Identified Cultural Populations Prevalent within the Service Area | D9: How does the agency currently accommodate the identified population (box will expand to accommodate multiple selections) | E9: If "Other", please list specific accommodation(s) provided
B16: Instructions: For Table 13, provide any identified Non-English languages spoken in your service region and what accommodations are in place for people who speak the identified language. Choose the type(s) of accommodation(s) from the drop-down box. You may choose multiple accommodation(s). If "Other" is selected, provide the identified Non-English language and the type(s) of accommodation(s) in the appropriate column(s).
B17: Column 1: Non-English Languages Spoken: provide the name of the Non-English languages identified as spoken in the agency service area. Column 2: Accommodations: Select current accommodations for the Non-English languages identified as spoken. (You may select more than one). Agency Forms: agency forms translated to accommodate specific languages. Bilingual Therapist: professional accommodation for linguistic characteristics including bilingual or multilingual factors for patients. Interpreter: professional or service who communicates to the patients regarding their medical care if their primary language is not English. Staff Support: agency staff who support and provide language accommodation to patients. Visual Aids: using visual content in other languages for patient education e.g., infographic on how to hand wash in other language(s). Other: any other accommodation provided.
B18: Table 13: Most recent 1 Year Data on Non-English Languages spoken within your Service Area
B19: Identified Non-English Languages Prevalent within the Service Area | D19: How does the agency currently accommodate the identified population (box will expand to accommodate multiple selections) | E19: If "Other", please list specific accommodation(s) provided
B26: Instructions: For Table 14, column 1, provide all populations identified as having communication barriers identified within your service population. From the dropdown, select the types of accommodations your agency provides to assist that population. You may select more than one type of accommodation. If "Other" is selected, provide the population name and the type of accommodation in the appropriate column.
B27: Column 1: Populations with Communication Barriers: the type of populations identified e.g. hard of hearing, non-verbal, limited vision, people who cannot read or write, etc. Column 2: Accommodations: Select current accommodations for the populations with communications barriers identified. (You may select more than one) Assistive Technology: equipment, software program, or product used to improve patient communication. Braille Materials: documents available by people who are visually impaired. Interpreters: services or agency staff who communicate with patients regarding their care. Large Print Materials: printed materials in large print so a person with limited vision can read the document. Staff Support: agency staff is available to assist patients with their care. Other: any other accommodation provided.
B28: Table 14: Most recent 1 Year Data on Populations with Other Communication Barriers within your Service Area
B29: Identified Populations Prevalent within the Service Area | D29: How does the agency currently accommodate the identified population (box will expand to accommodate multiple selections) | E29: If "Other" is selected, provide the type of accommodation your agency provides

Sheet Care Coordination
B2: CARE COORDINATION
B3: By understanding which groups may face greater challenges in accessing needed services, as well as understanding any integrated care needs, your agency can implement targeted outreach and support efforts. Identifying health and social factors in underserved populations will help your agency to address disparities in access to care. Care Coordination should be viewed as an activity, not a service, and incorporated throughout agency activities.
B4: *Information for this table may be obtained from the "Regional Demographics Data" tab, your agency's EHR, as well as stakeholder engagement activities*
B5: Instructions: For Table 15, provide information on the underserved populations identified within your service area and the type of activities your agency engages in to support the underserved populations. See "Free Response Questions" Tab for additional information required.
B6: Underserved Populations: Populations with limited or no access to care or resources.
B7: Table 15: Identified Underserved Populations Prevalent within your Service Area
B8: Identified Underserved Populations Prevalent within the Service Area | C8: Provide the type of outreach, engagement, and support(s) your agency currently provides to this population(s)

Sheet SDOH
B2: SOCIAL DRIVERS OF HEALTH
B3: Social Drivers of Health (SDOH) are the nonmedical (non-clinical) factors or conditions that influence health outcomes. SDOH influenced by nonmedical factors may include inadequate access to care, food insecurity, living in poverty, limited support system, violence, and unhealthy behaviors.
B4: *Information for this table may be obtained from your agency's EHR as well as stakeholder engagement activities*
B5: Instructions: For Table 16, select the predominant SDOH identified, from the drop-down list, impacting your service region. If "Other" is selected, provide any additional health disparities identified. See "Free Response Questions" Tab for additional information required.
B6: Access to Healthcare: the lack of ability to obtain healthcare services for prevention, diagnosis, treatment, and the management of diseases, illnesses, disorders, and other health-impacting conditions. Economic Instability: a person or family lacks the resources to provide life necessities (e.g., affordable housing, employment that provides a living wage, child care, and access to reliable transportation). Food Insecurity: not having access to sufficient food or quality/nutritious food to meet one’s basic needs. Health Behaviors: smoking, substance use, diet, lack of physical activity. Limited Support System: having limited or no network of family/friends or resources. Personal Safety: a pattern of assault or coercive behaviors including physical, sexual, and/or psychological abuse. Racial/Cultural Disparity: imbalances and/or incongruities between the treatment of racial and cultural groups. Other: any other identified causes negatively impacting the health of the population.
B7: Table 16: Predominant Social Drivers of Health impacting your Service Region
B8: Predominant Social Drivers of Health | C8: If Other, provide any additional health disparities identified

Sheet Free Response Questions
B2: RESPONSE TO THE FOLLOWING QUESTIONS IS REQUIRED
B3: Instructions: Please provide clear detailed responses that directly address the request(s) for information below. The responses should be clear and specific with details, to the best of your ability. This is a required section to complete, refrain from using “N/A” and ensure all responses are comprehensive.
B4: GEOGRAPHIC SERVICE AREA
B5: Please include examples of locations where your agency historically provides services outside of specific clinic locations e.g., libraries, homeless shelter, patient home, schools.
B7: Describe how your agency determines hours of operation including evening and weekend hours for individual locations.
B9: Specific to those agency locations reported as not CCBHC certified, please provide information on what services/programs are provided.
B12: REGIONAL DEMOGRAPHIC DATA
B13: What barriers are associated with delivering CCBHC services within your service area (e.g., location of CCBHC, privacy concerns, transportation, inability to collaborate with other providers, etc.)?
B15: Describe identified trends within your service area related to the number of clients served. Please describe all (positive and negative) trends impacting your service area.
B17: Describe any specific additional demographic factors identified which pose challenges or unique considerations to address mental health and substance use needs in the CCBHC’s service area(s), e.g., race/ethnicity, age, culture, rural location, low socioeconomic status, religious beliefs.
B21: PREVALENCE OF MENTAL HEALTH AND SUBSTANCE USE DISORDER(S)
B22: Describe any trends identified in the occurrence of mental health and substance use conditions within the service area (consider year over year changes). Discuss if the penetration rate meets the expectations of the CCBHC.
B24: Describe how the CCBHC plans to address gaps/needs in service penetration rates identified in the behavioral health penetration data. (i.e.: expansion of EBPs, marketing activities, outreach activities, increase in staff and/or additional locations, etc.).
B26: In review of your agency CQI plan and activities, discuss how the data collected and monitored regarding rates of suicide, suicide attempts, and overdose is used to inform identified needs, as well as corresponding service delivery within you service region. Discuss the current rates of suicide, suicide attempts, and overdose within your service region for the past three calendar years.
B29: STAKEHOLDER ENGAGEMENT
B30: Describe any partnerships or collaborations your agency has established with community organizations or stakeholders to address racial health disparities.
B32: Describe any feedback received from any cultural and/or racially diverse stakeholders regarding your services, and how your agency has used, or will use this feedback to make improvements.
B34: Identify the steps your agency takes to actively engage and involve culturally and/or racially diverse communities in the planning and implementation of behavioral health services at your CCBHC.
B37: CULTURAL AND LINGUISTIC DIVERSITY NEEDS
B38: Provide the methods used to assess the cultural and linguistic needs within your service region.
B40: Document any languages and cultures that are prevalent within the local community, but currently not represented among clinic staff or in printed materials.
B42: Identify and provide the challenges related to cultural and linguistic factors that impact the effective provision of integrated behavioral health care.
B45: CARE COORDINATION
B46: Describe how your care coordination activities promote access to high-quality physical health care (both acute and chronic) and behavioral health care.
B48: Describe how your care coordination activities support a person's access to social services, housing, educational systems, and employment opportunities to facilitate wellness and recovery of the whole person.
B50: What are the potential barriers the underserved communities and individuals face to enrolling in and accessing needed benefits and services?
B52: Describe the care coordination strategies used to address and promote racial equity.
B54: Describe how your agency utilizes electronic communication within care coordination activities.
B57: SOCIAL DRIVERS OF HEALTH
B58: Describe the steps your agency takes to continually assess the SDOH needs within your service area.
B60: How does your agency currently provide outreach and engagement to those in your service region impacted by the SDOH in Table 15 (refer to SDOH tab).
B62: Explain which strategies your agency plans to implement to further increase outreach and engagement activities to support those impacted by the SDOH in Table 15 with accessing and engaging in needed services (refer to SDOH tab).
B65: ASSESSMENT OF STAFFING / STAFFING PLAN
B66: Based on data collection and stakeholder engagement activities, discuss all identified staffing-related challenges which pose barriers to delivering integrated behavioral health services.
B68: Based on the reported population demographics, discuss any staffing barriers, challenges, or training needs identified in providing integrated behavioral health services in your region.
B70: Based on the reported population demographics, discuss any staffing barriers, challenges, or training needs identified to serve these populations with cultural responsiveness and to ensure equitable services for all racial and ethnic groups.
B72: Based on data collection and stakeholder engagement activities, discuss any staffing needs for expansion of programming and/or need for evidence based practices not currently required by the state.
B74: Based on stakeholder engagement activities and assessment of current staffing levels, discuss any barriers, challenges, or training needs identified in providing comprehensive SUD services.
B76: Based on stakeholder engagement activities and assessment of current staffing levels, discuss any barriers, challenges, or training needs identified in providing comprehensive services to veterans.
B78: Based on the information collected from your community needs assessment activities, how does your agency determine staffing levels are appropriate for the population receiving services, in terms of size and composition, and providing the types of services the CCBHC is required to and proposes to offer.

Sheet EBP Consideration
B2: EVIDENCE-BASED PRACTICE CONSIDERATIONS
B3: In understanding the significance of evidence-based practices (EBPs) in providing effective behavioral health services, this section seeks to illuminate the current and planned integration of the required CCBHC EBPs within your agency, as well as additional EBPs integrated within agency activities.
B4: Instructions: Please provide information on additional EBPs in use by your agency to meet the needs of consumers in your service area.
B5: Detail strategies the CCBHC employs to continually monitor and evaluate the effectiveness of EBPs in meeting the needs of your service population.
B7: Please explain how your agency identifies additional EBP needs within your service area. Provide any specific instances, if applicable, where community members have suggested recommendations aimed at supporting their behavioral health needs.
B9: Describe any obstacles or challenges you have encountered related to the identification, adoption, or implementation of EBPs.

Sheet Summary Findings Nxt S
B2: SUMMARY OF FINDINGS AND NEXT STEPS
B3: The purpose of the Summary of Findings and Next Steps section is to collect and analyze the data/information included in each section of the Community Needs Assessment. The summary of findings will inform the agency CQI plan and processes, as well as inform agency services and staffing. Please provide the information requested in each section below. If additional space is needed please use the "Continuation" tab.
B4: Instructions: Use the data/information included in each section of the community needs assessment to complete the tables below.
B5: Identified Needs: Any needs identified as a result of stakeholder engagement activities and data collection/analysis. Identified Barriers: Any barriers identified as a result of stakeholder engagement activities and data collection/analysis. Agency Action Plan: Agency plan to address or remediate identified needs and barriers. Action Plan activities should be included in agency CQI Plan, as appropriate. Based on the information collected and analyzed by your agency during this needs assessment process, please provide agency goals (SMART GOALS) to support implementation of the agency action plan. SMART Goals should be regularly reviewed and progress assessed within agency CQI activities.
B10: Prevalence of Mental Health and Substance Use Conditions
B11: Summary of Identified Needs
B12: Summary of Identified Barriers
B13: Agency Action Plan
B14: SMART Goal
B15: Agency Smart Goal
B17: Accessibility and Availability of Services
B18: Summary of Identified Needs
B19: Summary of Identified Barriers
B20: Agency Action Plan
B21: SMART Goal
B22: Agency Smart Goal
B24: Cultural and Linguistic Diversity Needs
B25: Summary of Identified Needs
B26: Summary of Identified Barriers
B27: Agency Action Plan
B28: SMART Goal
B29: Agency Smart Goal
B31: Needs of the Underserved Population
B32: Summary of Identified Needs
B33: Summary of Identified Barriers
B34: Agency Action Plan
B35: SMART Goal
B36: Agency Smart Goal
B38: Social Drivers of Health
B39: Summary of Identified Needs
B40: Summary of Identified Barriers
B41: Agency Action Plan
B42: SMART Goal
B43: Agency Smart Goal
B45: Assessment of Staffing
B46: Summary of Identified Needs
B47: Summary of Identified Barriers
B48: Agency Action Plan
B49: SMART Goal
B50: Agency Smart Goal
B52: Evidence Based Practices Considerations
B53: Summary of Identified Needs
B54: Summary of Identified Barriers
B55: Agency Action Plan
B56: SMART Goal
B57: Agency Smart Goal

Sheet Summary Continuation Tab
B2: CONTINUATION TAB SUMMARY OF FINDINGS AND NEXT STEPS
B6: Prevalence of Mental Health and Substance Use Conditions
B7: Summary of Identified Needs
B8: Summary of Identified Barriers
B9: Agency Action Plan
B10: SMART Goal
B11: Agency Smart Goal
B13: Accessibility and Availability of Services
B14: Summary of Identified Needs
B15: Summary of Identified Barriers
B16: Agency Action Plan
B17: SMART Goal
B18: Agency Smart Goal
B20: Cultural and Linguistic Diversity Needs
B21: Summary of Identified Needs
B22: Summary of Identified Barriers
B23: Agency Action Plan
B24: SMART Goal
B25: Agency Smart Goal
B27: Needs of the Underserved Population
B28: Summary of Identified Needs
B29: Summary of Identified Barriers
B30: Agency Action Plan
B31: SMART Goal
B32: Agency Smart Goal
B34: Social Drivers of Health
B35: Summary of Identified Needs
B36: Summary of Identified Barriers
B37: Agency Action Plan
B38: SMART Goal
B39: Agency Smart Goal
B41: Assessment of Staffing
B42: Summary of Identified Needs
B43: Summary of Identified Barriers
B44: Agency Action Plan
B45: SMART Goal
B46: Agency Smart Goal
B48: Evidence Based Practices Considerations
B49: Summary of Identified Needs
B50: Summary of Identified Barriers
B51: Agency Action Plan
B52: SMART Goal
B53: Agency Smart Goal

Sheet Attestation
B2: Attestation
B3: Agency Name | I3: Start date of Needs Assessment | L3: XX/XX/XXXX
I4: Completion date of Needs Assessment | L4: XX/XX/XXXX
B5: Primary Contact Name and Email
B7: (Agency name - fill in) agrees to update their community needs assessment and staffing plan no less than every three years in full compliance with the Substance Abuse and Mental Health Services Administration (SAMHSA) regulations. Our agency understands the importance of regular updates to ensure the accuracy and relevance of our assessment in addressing the evolving needs of the community and enhancing the quality of our services.
B8: Regular update of the needs assessment ensures the CCBHC stays responsive to evolving community needs. This plan outlines a structured approach to gather up-to-date data, enabling the program to continuously review and improve its services to meet identified needs within their service region.
B10: Authorized Signer Name
B11: Signature | K11: Date

Sheet Drop-Down List (hidden)
B2: Table 1: Provider CCBHC Site Information
B3: No
B4: Yes
B6: Table 2: DCO Site Information
B7: Outpatient Mental Health & Substance Use Service
B8: Outpatient Primary Care Screening and Monitoring
B9: Peer, Family Support, & Counselor Services
B10: Psychiatric Rehabilitation Services
B11: Screening, Assessment, Diagnosis & Risk Assessment
B12: Targeted Case Management
B13: Treatment Planning
B16: Table 7: Stakeholder Engagement Type
B17: Type of Outreach
B18: Focus Groups
B19: Interview
B20: Meetings
B21: Survey
B22: Other
B23: None
B25: Table 12: Most recent (1 Year) Data on Cultural Diversity within your service area
B26: Gender-Concordant Care
B27: Promote Cultural Awareness
B28: Religious Accommodations
B29: Staff Training
B30: Other
B32: Table 13: Most recent 1 Year Data on Non-English Speaking Households within your Service Area
B33: Bilingual Therapist
B34: Agency Forms
B35: Interpreter
B36: Staff Support
B37: Visual Aids
B38: Other
B40: Table 14 Most recent 1 Year Data on Linguistic Diversity within your Service Area
B41: Assistive Technology
B42: Braille Materials
B43: Interpreters
B44: Large Print Materials
B45: Staff Assisted Support
B46: Other
B48: Table 16: Predominant Social Drivers of Health impacting your Service Region
B49: Access to Healthcare
B50: Economic Instability
B51: Food Insecurity
B52: Health Behaviors
B53: Limited Support System
B54: Personal Safety
B55: Racial/Cultural Disparity
B56: Other
